[Event "Live Chess"]
[Site "Chess.com"]
[Date "2024.06.02"]
[Round "-"]
[White "ShanthamGrarks"]
[Black "stevochess11"]
[Result "1-0"]
[WhiteElo "1861"]
[BlackElo "1686"]
[TimeControl "300"]
[EndTime "18:16:05 PDT"]
[Termination "ShanthamGrarks won by checkmate"]

1. d4 {[%clk 0:04:56.9]} 1... Nf6 {[%clk 0:04:58.8]} 2. Nc3 {[%clk 0:04:56.4]}
2... d5 {[%clk 0:04:56.7]} 3. e4 {[%clk 0:04:55.9]} 3... dxe4 {[%clk 0:04:55.2]}
4. f3 {[%clk 0:04:55]} 4... c5 {[%clk 0:04:55.1]} 5. d5 {[%clk 0:04:53.1]} 5...
exf3 {[%clk 0:04:51.1]} 6. Nxf3 {[%clk 0:04:51]} 6... Bg4 {[%clk 0:04:47.8]} 7.
Bg5 {[%clk 0:04:47.1]} 7... Nbd7 {[%clk 0:04:46.4]} 8. Be2 {[%clk 0:04:40.3]}
8... g6 {[%clk 0:04:45.1]} 9. Bxf6 {[%clk 0:04:39.1]} 9... Nxf6 {[%clk
0:04:42.4]} 10. O-O {[%clk 0:04:33.4]} 10... Bg7 {[%clk 0:04:40.8]} 11. Ne5
{[%clk 0:04:20.9]} 11... Bxe2 {[%clk 0:04:39]} 12. Qxe2 {[%clk 0:04:19.5]} 12...
O-O {[%clk 0:04:37.4]} 13. Rad1 {[%clk 0:04:16.5]} 13... Qd6 {[%clk 0:04:18.6]}
14. Nb5 {[%clk 0:04:11]} 14... Qa6 {[%clk 0:04:14.7]} 15. c4 {[%clk 0:04:08.3]}
15... Rac8 {[%clk 0:04:06.4]} 16. a3 {[%clk 0:04:03.1]} 16... Nh5 {[%clk
0:03:55.6]} 17. Nd7 {[%clk 0:03:55.7]} 17... Rfe8 {[%clk 0:03:48.8]} 18. Qf3
{[%clk 0:03:43.5]} 18... Nf6 {[%clk 0:03:44.6]} 19. Ne5 {[%clk 0:03:38.4]} 19...
Qb6 {[%clk 0:03:27.4]} 20. g4 {[%clk 0:03:34.2]} 20... a6 {[%clk 0:03:25]} 21.
g5 {[%clk 0:03:27.2]} 21... axb5 {[%clk 0:03:23.5]} 22. gxf6 {[%clk 0:03:26]}
22... exf6 {[%clk 0:03:22.1]} 23. Ng4 {[%clk 0:03:01.6]} 23... bxc4 {[%clk
0:03:17.8]} 24. d6 {[%clk 0:02:58.6]} 24... Rcd8 {[%clk 0:03:12.8]} 25. Nxf6+
{[%clk 0:02:56.9]} 25... Bxf6 {[%clk 0:03:08]} 26. Qxf6 {[%clk 0:02:55.2]} 26...
Rf8 {[%clk 0:03:03.2]} 27. Rfe1 {[%clk 0:02:38.1]} 27... Qc6 {[%clk 0:02:42.1]}
28. Re7 {[%clk 0:02:33.5]} 28... Qa4 {[%clk 0:02:28.7]} 29. Rf1 {[%clk
0:02:27.4]} 29... Rd7 {[%clk 0:02:19.4]} 30. h4 {[%clk 0:02:03.9]} 30... Qc6
{[%clk 0:02:17.9]} 31. h5 {[%clk 0:01:55.7]} 31... Qxd6 {[%clk 0:02:13.5]} 32.
Qxd6 {[%clk 0:01:45.2]} 32... Rxd6 {[%clk 0:02:10.5]} 33. Rxb7 {[%clk
0:01:44.8]} 33... gxh5 {[%clk 0:02:08.2]} 34. Rc7 {[%clk 0:01:43]} 34... Rd5
{[%clk 0:02:06.8]} 35. a4 {[%clk 0:01:38.9]} 35... f5 {[%clk 0:01:54.5]} 36. Kh2
{[%clk 0:01:33.7]} 36... Ra8 {[%clk 0:01:50.7]} 37. Rg1+ {[%clk 0:01:32.3]}
37... Kf8 {[%clk 0:01:49.5]} 38. Rgg7 {[%clk 0:01:29.6]} 38... Rd2+ {[%clk
0:01:44.2]} 39. Kh3 {[%clk 0:01:23.9]} 39... Rxb2 {[%clk 0:01:33.1]} 40. Rxh7
{[%clk 0:01:20.7]} 40... Kg8 {[%clk 0:01:31.9]} 41. Rcg7+ {[%clk 0:01:11.8]}
41... Kf8 {[%clk 0:01:30.3]} 42. Rf7+ {[%clk 0:01:11.1]} 42... Ke8 {[%clk
0:01:28.9]} 43. Rxf5 {[%clk 0:01:10.1]} 43... Rxa4 {[%clk 0:01:23.5]} 44. Rxc5
{[%clk 0:01:05.3]} 44... Ra3+ {[%clk 0:01:22.3]} 45. Kh4 {[%clk 0:01:03.8]}
45... Rh2+ {[%clk 0:01:19.3]} 46. Kg5 {[%clk 0:01:02.8]} 46... Rg2+ {[%clk
0:01:14.8]} 47. Kf4 {[%clk 0:00:54.9]} 47... Rf2+ {[%clk 0:01:11.6]} 48. Ke4
{[%clk 0:00:53.6]} 48... Ra8 {[%clk 0:01:03.6]} 49. Rxc4 {[%clk 0:00:49.6]}
49... Rh2 {[%clk 0:01:00.3]} 50. Rh8+ {[%clk 0:00:44.8]} 50... Kd7 {[%clk
0:00:55.8]} 51. Rxa8 {[%clk 0:00:43.3]} 51... Rh4+ {[%clk 0:00:54.3]} 52. Kd3
{[%clk 0:00:41.8]} 52... Rh3+ {[%clk 0:00:53.1]} 53. Ke2 {[%clk 0:00:40.6]}
53... h4 {[%clk 0:00:51.9]} 54. Rh8 {[%clk 0:00:37.9]} 54... Rh2+ {[%clk
0:00:50]} 55. Kf3 {[%clk 0:00:36.5]} 55... h3 {[%clk 0:00:48.9]} 56. Rch4 {[%clk
0:00:32.9]} 56... Ra2 {[%clk 0:00:46.2]} 57. Rxh3 {[%clk 0:00:31.4]} 57... Ra3+
{[%clk 0:00:46.1]} 58. Ke2 {[%clk 0:00:29.3]} 58... Ra2+ {[%clk 0:00:45.2]} 59.
Kd1 {[%clk 0:00:28.4]} 59... Ra1+ {[%clk 0:00:44.5]} 60. Kc2 {[%clk 0:00:28]}
60... Ra2+ {[%clk 0:00:43.7]} 61. Kb3 {[%clk 0:00:27.4]} 61... Rf2 {[%clk
0:00:42.4]} 62. R8h6 {[%clk 0:00:23]} 62... Rf4 {[%clk 0:00:40.1]} 63. Rg3
{[%clk 0:00:21.7]} 63... Ke7 {[%clk 0:00:38.5]} 64. Rg7+ {[%clk 0:00:20.4]}
64... Kf8 {[%clk 0:00:37.8]} 65. Ra7 {[%clk 0:00:17.6]} 65... Rf3+ {[%clk
0:00:36.7]} 66. Kc4 {[%clk 0:00:16.1]} 66... Rf4+ {[%clk 0:00:34.8]} 67. Kd5
{[%clk 0:00:15.7]} 67... Kg8 {[%clk 0:00:33]} 68. Rb6 {[%clk 0:00:13.1]} 68...
Rf5+ {[%clk 0:00:31.7]} 69. Ke4 {[%clk 0:00:12]} 69... Rf8 {[%clk 0:00:29.2]}
70. Rbb7 {[%clk 0:00:11.5]} 70... Re8+ {[%clk 0:00:27.2]} 71. Kf5 {[%clk
0:00:11.1]} 71... Kh8 {[%clk 0:00:22.1]} 72. Kg6 {[%clk 0:00:09.9]} 72... Rg8+
{[%clk 0:00:21.1]} 73. Kh6 {[%clk 0:00:07.1]} 73... Rc8 {[%clk 0:00:13.3]} 74.
Rh7+ {[%clk 0:00:06.6]} 74... Kg8 {[%clk 0:00:12.5]} 75. Rag7+ {[%clk
0:00:05.8]} 75... Kf8 {[%clk 0:00:11.6]} 76. Rh8# {[%clk 0:00:05.7]} 1-0

[Event "Live Chess"]
[Site "Chess.com"]
[Date "2024.06.02"]
[Round "-"]
[White "lyricalschemes"]
[Black "nigelst"]
[Result "0-1"]
[WhiteElo "2239"]
[BlackElo "1741"]
[TimeControl "300"]
[EndTime "18:16:20 PDT"]
[Termination "nigelst won by resignation"]

1. e4 {[%clk 0:04:59.1]} 1... c6 {[%clk 0:04:58.7]} 2. d4 {[%clk 0:04:58.2]}
2... d5 {[%clk 0:04:58.1]} 3. Nc3 {[%clk 0:04:58.1]} 3... dxe4 {[%clk
0:04:56.8]} 4. Nxe4 {[%clk 0:04:56.9]} 4... Bf5 {[%clk 0:04:56]} 5. Ng3 {[%clk
0:04:56.3]} 5... Bg6 {[%clk 0:04:55]} 6. h4 {[%clk 0:04:56]} 6... h6 {[%clk
0:04:53.1]} 7. Nf3 {[%clk 0:04:54.9]} 7... Nd7 {[%clk 0:04:48]} 8. h5 {[%clk
0:04:54.2]} 8... Bh7 {[%clk 0:04:46.3]} 9. Bd3 {[%clk 0:04:53.9]} 9... Bxd3
{[%clk 0:04:44.4]} 10. Qxd3 {[%clk 0:04:53.8]} 10... e6 {[%clk 0:04:43.6]} 11.
Bf4 {[%clk 0:04:51.8]} 11... Qa5+ {[%clk 0:04:41.2]} 12. c3 {[%clk 0:04:50.5]}
12... Ngf6 {[%clk 0:04:38.9]} 13. Ne5 {[%clk 0:04:44.1]} 13... Nxe5 {[%clk
0:04:36.6]} 14. Bxe5 {[%clk 0:04:43.2]} 14... Be7 {[%clk 0:04:35.5]} 15. O-O
{[%clk 0:04:41]} 15... O-O {[%clk 0:04:29.1]} 16. f4 {[%clk 0:04:39.9]} 16...
Ng4 {[%clk 0:04:25.8]} 17. b4 {[%clk 0:04:26.6]} 17... Qd8 {[%clk 0:04:18.5]}
18. Qe2 {[%clk 0:04:05]} 18... Nxe5 {[%clk 0:04:16.8]} 19. fxe5 {[%clk
0:03:58.9]} 19... Rc8 {[%clk 0:04:04]} 20. Ne4 {[%clk 0:03:54.5]} 20... Qd5
{[%clk 0:03:59]} 21. Qg4 {[%clk 0:03:50.7]} 21... b6 {[%clk 0:03:41.4]} 22. Nf6+
{[%clk 0:03:48.5]} 22... Bxf6 {[%clk 0:03:36.8]} 23. exf6 {[%clk 0:03:47.1]}
23... g6 {[%clk 0:03:34.7]} 24. hxg6 {[%clk 0:03:45.7]} 24... Qg5 {[%clk
0:03:31.2]} 25. gxf7+ {[%clk 0:03:43]} 25... Kxf7 {[%clk 0:03:30.3]} 26. Qe4
{[%clk 0:03:38.6]} 26... Qg6 {[%clk 0:03:22.5]} 27. Qxg6+ {[%clk 0:03:23.4]}
27... Kxg6 {[%clk 0:03:21.3]} 28. Rae1 {[%clk 0:03:22.3]} 28... Rxf6 {[%clk
0:03:19.1]} 29. Rxf6+ {[%clk 0:03:11.2]} 29... Kxf6 {[%clk 0:03:16.9]} 30. Re5
{[%clk 0:03:06.4]} 30... Rg8 {[%clk 0:03:14.9]} 31. Kf2 {[%clk 0:03:05.2]} 31...
Rg5 {[%clk 0:03:09.4]} 32. Rxg5 {[%clk 0:02:53.4]} 32... Kxg5 {[%clk 0:02:57.1]}
33. c4 {[%clk 0:02:47.4]} 33... Kf4 {[%clk 0:02:55.6]} 34. b5 {[%clk 0:02:43.7]}
34... cxb5 {[%clk 0:02:48.3]} 35. c5 {[%clk 0:02:22]} 35... bxc5 {[%clk
0:02:47.1]} 36. dxc5 {[%clk 0:02:21.6]} 36... Ke5 {[%clk 0:02:46.1]} 37. c6
{[%clk 0:02:21.2]} 37... Kd6 {[%clk 0:02:45.1]} 0-1

[Event "Live Chess"]
[Site "Chess.com"]
[Date "2024.06.02"]
[Round "-"]
[White "Duke_of_Bebington"]
[Black "Thebigsqueeze"]
[Result "0-1"]
[WhiteElo "1640"]
[BlackElo "2278"]
[TimeControl "300"]
[EndTime "18:16:22 PDT"]
[Termination "Thebigsqueeze won by resignation"]

1. e4 {[%clk 0:04:56.7]} 1... e6 {[%clk 0:04:58.7]} 2. d4 {[%clk 0:04:54.8]}
2... d5 {[%clk 0:04:57.7]} 3. Nd2 {[%clk 0:04:54.3]} 3... Nf6 {[%clk 0:04:55.2]}
4. Bd3 {[%clk 0:04:53.5]} 4... c5 {[%clk 0:04:52.2]} 5. c3 {[%clk 0:04:53.1]}
5... Nc6 {[%clk 0:04:50]} 6. e5 {[%clk 0:04:51.8]} 6... Nd7 {[%clk 0:04:46]} 7.
Ne2 {[%clk 0:04:51.2]} 7... cxd4 {[%clk 0:04:44.7]} 8. cxd4 {[%clk 0:04:49.7]}
8... f6 {[%clk 0:04:43.5]} 9. Nf4 {[%clk 0:04:47.4]} 9... Nxd4 {[%clk 0:04:42]}
10. Qh5+ {[%clk 0:04:41.5]} 10... Ke7 {[%clk 0:04:41.2]} 11. Ng6+ {[%clk
0:04:38.2]} 11... hxg6 {[%clk 0:04:40.2]} 12. exf6+ {[%clk 0:04:37.3]} 12...
Nxf6 {[%clk 0:04:39.3]} 13. Qxh8 {[%clk 0:04:36.6]} 13... Kf7 {[%clk 0:04:38]}
14. O-O {[%clk 0:04:30.5]} 14... e5 {[%clk 0:04:37]} 15. Qh4 {[%clk 0:04:26.2]}
15... e4 {[%clk 0:04:31.7]} 16. Bb1 {[%clk 0:04:18.8]} 16... Bd6 {[%clk
0:04:08.9]} 17. Re1 {[%clk 0:04:11]} 17... Be6 {[%clk 0:03:56]} 18. Nf1 {[%clk
0:04:07.1]} 18... Rc8 {[%clk 0:03:49.7]} 19. Bg5 {[%clk 0:04:04.1]} 19... Nf5
{[%clk 0:03:33.9]} 20. Qh3 {[%clk 0:03:53.2]} 20... Qb6 {[%clk 0:03:26]} 21. Qb3
{[%clk 0:03:45.6]} 21... Qc7 {[%clk 0:02:50.4]} 22. Ne3 {[%clk 0:03:42.8]} 22...
Bxh2+ {[%clk 0:02:44.8]} 23. Kf1 {[%clk 0:03:41]} 23... d4 {[%clk 0:02:34.9]}
24. Bxf6 {[%clk 0:02:55]} 24... Bxb3 {[%clk 0:02:30.1]} 25. axb3 {[%clk
0:02:54.4]} 25... dxe3 {[%clk 0:02:23.3]} 26. Bc3 {[%clk 0:02:51]} 26... exf2
{[%clk 0:02:21.4]} 27. Kxf2 {[%clk 0:02:49.8]} 0-1

[Event "Live Chess"]
[Site "Chess.com"]
[Date "2024.06.02"]
[Round "-"]
[White "MaksymYurii"]
[Black "Dhaydon19"]
[Result "0-1"]
[WhiteElo "970"]
[BlackElo "2682"]
[TimeControl "300"]
[EndTime "18:16:49 PDT"]
[Termination "Dhaydon19 won by checkmate"]

1. e4 {[%clk 0:04:58.1]} 1... c6 {[%clk 0:04:58.3]} 2. Nf3 {[%clk 0:04:56.9]}
2... d5 {[%clk 0:04:57.7]} 3. exd5 {[%clk 0:04:52.8]} 3... cxd5 {[%clk
0:04:56.8]} 4. d4 {[%clk 0:04:48.1]} 4... Nc6 {[%clk 0:04:56]} 5. Nc3 {[%clk
0:04:46.5]} 5... Bg4 {[%clk 0:04:54.9]} 6. Be2 {[%clk 0:04:44.6]} 6... e6 {[%clk
0:04:53]} 7. Ne5 {[%clk 0:04:39.9]} 7... Bxe2 {[%clk 0:04:51.3]} 8. Qxe2 {[%clk
0:04:38.2]} 8... Nxd4 {[%clk 0:04:50.4]} 9. Qd3 {[%clk 0:04:17.7]} 9... Nc6
{[%clk 0:04:49.4]} 10. Bf4 {[%clk 0:04:05.3]} 10... Bd6 {[%clk 0:04:48.2]} 11.
Qb5 {[%clk 0:03:58.9]} 11... Qc7 {[%clk 0:04:44.5]} 12. Nxc6 {[%clk 0:03:48.4]}
12... bxc6 {[%clk 0:04:42.7]} 13. Bxd6 {[%clk 0:03:42.7]} 13... Qxd6 {[%clk
0:04:41.3]} 14. Qb7 {[%clk 0:03:14.4]} 14... Rb8 {[%clk 0:04:38.8]} 15. Qxa7
{[%clk 0:03:09.7]} 15... Nf6 {[%clk 0:04:37.4]} 16. O-O {[%clk 0:03:07.7]} 16...
Rxb2 {[%clk 0:04:31.6]} 17. Rab1 {[%clk 0:03:02.2]} 17... Rxb1 {[%clk
0:04:30.1]} 18. Rxb1 {[%clk 0:03:00.8]} 18... O-O {[%clk 0:04:29.8]} 19. Ne2
{[%clk 0:02:51.1]} 19... Qe5 {[%clk 0:04:25.2]} 20. Ng3 {[%clk 0:02:46.5]} 20...
h5 {[%clk 0:04:22.9]} 21. h3 {[%clk 0:02:32.8]} 21... h4 {[%clk 0:04:19.7]} 22.
Nf1 {[%clk 0:02:14.1]} 22... Qc3 {[%clk 0:04:16.4]} 23. Qa4 {[%clk 0:01:52.7]}
23... Ne4 {[%clk 0:04:11.2]} 24. f3 {[%clk 0:01:36.4]} 24... Qc5+ {[%clk
0:04:09.5]} 25. Kh1 {[%clk 0:01:32.8]} 25... Nc3 {[%clk 0:04:06.4]} 26. Qxh4
{[%clk 0:01:15.8]} 26... Nxb1 {[%clk 0:04:04]} 27. Ng3 {[%clk 0:01:09.1]} 27...
Qf2 {[%clk 0:03:58]} 28. Qg4 {[%clk 0:01:02.2]} 28... Qe1+ {[%clk 0:03:50]} 29.
Kh2 {[%clk 0:01:00.2]} 29... Qe5 {[%clk 0:03:49.5]} 30. Kh1 {[%clk 0:00:58.9]}
30... Nd2 {[%clk 0:03:47.5]} 31. Nh5 {[%clk 0:00:56]} 31... Nf1 {[%clk
0:03:38.9]} 32. Kg1 {[%clk 0:00:48.3]} 32... Ne3 {[%clk 0:03:36]} 33. f4 {[%clk
0:00:20.3]} 33... Qa1+ {[%clk 0:03:32.9]} 34. Kh2 {[%clk 0:00:18]} 34... Nxg4+
{[%clk 0:03:32]} 35. hxg4 {[%clk 0:00:17]} 35... g6 {[%clk 0:03:31.4]} 36. Ng3
{[%clk 0:00:14.1]} 36... Qd4 {[%clk 0:03:31.1]} 37. f5 {[%clk 0:00:12.7]} 37...
Qf4 {[%clk 0:03:30.4]} 38. Kh3 {[%clk 0:00:11.4]} 38... Kg7 {[%clk 0:03:28.8]}
39. Kh4 {[%clk 0:00:08.6]} 39... Rh8+ {[%clk 0:03:27.9]} 40. Nh5+ {[%clk
0:00:05.7]} 40... Rxh5# {[%clk 0:03:27.6]} 0-1

[Event "Live Chess"]
[Site "Chess.com"]
[Date "2024.06.02"]
[Round "-"]
[White "KeithArkell"]
[Black "Tushinskiy"]
[Result "1-0"]
[WhiteElo "2450"]
[BlackElo "2259"]
[TimeControl "300"]
[EndTime "18:17:08 PDT"]
[Termination "KeithArkell won by resignation"]

1. d4 {[%clk 0:04:57.3]} 1... d5 {[%clk 0:04:58.7]} 2. Nf3 {[%clk 0:04:54.7]}
2... c6 {[%clk 0:04:58.6]} 3. c4 {[%clk 0:04:53.5]} 3... e6 {[%clk 0:04:56.6]}
4. cxd5 {[%clk 0:04:52.9]} 4... exd5 {[%clk 0:04:56.5]} 5. Nc3 {[%clk
0:04:52.3]} 5... Nf6 {[%clk 0:04:56.2]} 6. Qc2 {[%clk 0:04:51.8]} 6... Be7
{[%clk 0:04:55]} 7. Bg5 {[%clk 0:04:51.3]} 7... O-O {[%clk 0:04:54.1]} 8. e3
{[%clk 0:04:50.9]} 8... Nbd7 {[%clk 0:04:53.5]} 9. Bd3 {[%clk 0:04:49.6]} 9...
Re8 {[%clk 0:04:53]} 10. O-O {[%clk 0:04:48.9]} 10... Nf8 {[%clk 0:04:51.1]} 11.
Bxf6 {[%clk 0:04:48.4]} 11... Bxf6 {[%clk 0:04:49.8]} 12. b4 {[%clk 0:04:48.1]}
12... Bg4 {[%clk 0:04:48.2]} 13. Nd2 {[%clk 0:04:46.6]} 13... Rc8 {[%clk
0:04:45.1]} 14. Bf5 {[%clk 0:04:45]} 14... Bxf5 {[%clk 0:04:43.3]} 15. Qxf5
{[%clk 0:04:44.9]} 15... Qd6 {[%clk 0:04:41.6]} 16. Rab1 {[%clk 0:04:43.3]}
16... b6 {[%clk 0:04:39.1]} 17. Rfc1 {[%clk 0:04:41.4]} 17... Ne6 {[%clk
0:04:37.7]} 18. b5 {[%clk 0:04:40]} 18... Red8 {[%clk 0:04:28.3]} 19. bxc6
{[%clk 0:04:38.5]} 19... Rxc6 {[%clk 0:04:28.2]} 20. Ne2 {[%clk 0:04:26.8]}
20... Rdc8 {[%clk 0:04:20.1]} 21. Rxc6 {[%clk 0:04:25.9]} 21... Rxc6 {[%clk
0:04:18.1]} 22. g3 {[%clk 0:04:23.1]} 22... h6 {[%clk 0:04:06.3]} 23. Kg2 {[%clk
0:04:09.7]} 23... Rc7 {[%clk 0:03:53.3]} 24. Rb3 {[%clk 0:04:03.1]} 24... Be7
{[%clk 0:03:46.8]} 25. Rc3 {[%clk 0:04:00]} 25... g6 {[%clk 0:03:42.7]} 26. Qc2
{[%clk 0:03:51.4]} 26... Rxc3 {[%clk 0:03:36.5]} 27. Qxc3 {[%clk 0:03:51.3]}
27... Bf6 {[%clk 0:03:30.7]} 28. Qb3 {[%clk 0:03:46.7]} 28... Kg7 {[%clk
0:03:27.9]} 29. Nc3 {[%clk 0:03:45.7]} 29... Nc7 {[%clk 0:03:23]} 30. Nb5 {[%clk
0:03:44.5]} 30... Nxb5 {[%clk 0:03:21.1]} 31. Qxb5 {[%clk 0:03:43.8]} 31... h5
{[%clk 0:03:17.4]} 32. Nb1 {[%clk 0:03:42.6]} 32... h4 {[%clk 0:02:59.4]} 33.
Nc3 {[%clk 0:03:39.4]} 33... hxg3 {[%clk 0:02:58.3]} 34. hxg3 {[%clk 0:03:38.4]}
34... Bd8 {[%clk 0:02:50.1]} 35. Qxd5 {[%clk 0:03:36]} 35... Qb4 {[%clk
0:02:47.6]} 36. Ne4 {[%clk 0:03:23]} 36... Be7 {[%clk 0:02:45.7]} 37. Qe5+
{[%clk 0:03:21.2]} 37... Kg8 {[%clk 0:02:41.4]} 38. Qc7 {[%clk 0:03:16.6]} 38...
a5 {[%clk 0:02:34.8]} 39. Nc3 {[%clk 0:03:09.6]} 39... Bd6 {[%clk 0:02:25.8]}
40. Qd8+ {[%clk 0:02:57.8]} 40... Bf8 {[%clk 0:02:21.4]} 41. Nd5 {[%clk
0:02:53.7]} 41... Qb5 {[%clk 0:01:51.5]} 42. Nxb6 {[%clk 0:02:43.2]} 42... Qc6+
{[%clk 0:01:46.9]} 43. Nd5 {[%clk 0:02:42.2]} 43... a4 {[%clk 0:01:44.4]} 44.
Kg1 {[%clk 0:02:37.5]} 44... Qc1+ {[%clk 0:01:42.3]} 45. Kg2 {[%clk 0:02:34.8]}
45... Qc6 {[%clk 0:01:38.6]} 46. e4 {[%clk 0:02:33.9]} 46... Qc2 {[%clk
0:01:36.9]} 47. Nf6+ {[%clk 0:02:18.7]} 47... Kg7 {[%clk 0:01:35.5]} 48. Ne8+
{[%clk 0:02:11.1]} 48... Kg8 {[%clk 0:01:33.8]} 49. Qd5 {[%clk 0:02:09.8]} 49...
Be7 {[%clk 0:01:23.6]} 50. Qb7 {[%clk 0:01:53.8]} 50... Kf8 {[%clk 0:01:18.8]}
51. Qa8 {[%clk 0:01:35.2]} 51... a3 {[%clk 0:01:08.4]} 52. e5 {[%clk 0:01:33.2]}
52... Bd8 {[%clk 0:00:47.7]} 53. Qxd8 {[%clk 0:01:24.8]} 53... Qc6+ {[%clk
0:00:46.8]} 54. Kg1 {[%clk 0:01:19]} 1-0

[Event "Live Chess"]
[Site "Chess.com"]
[Date "2024.06.02"]
[Round "-"]
[White "NAZRIZ1977"]
[Black "StoreySniper"]
[Result "0-1"]
[WhiteElo "2128"]
[BlackElo "2513"]
[TimeControl "300"]
[EndTime "18:17:46 PDT"]
[Termination "StoreySniper won by resignation"]

1. e4 {[%clk 0:04:53.1]} 1... g6 {[%clk 0:04:58.9]} 2. Nf3 {[%clk 0:04:49.2]}
2... Bg7 {[%clk 0:04:58.5]} 3. c3 {[%clk 0:04:47.9]} 3... c5 {[%clk 0:04:57.8]}
4. Be2 {[%clk 0:04:46.5]} 4... Nc6 {[%clk 0:04:56.2]} 5. O-O {[%clk 0:04:45.4]}
5... d5 {[%clk 0:04:53.4]} 6. exd5 {[%clk 0:04:43.8]} 6... Qxd5 {[%clk
0:04:53.3]} 7. h3 {[%clk 0:04:43.3]} 7... Nf6 {[%clk 0:04:52.2]} 8. Na3 {[%clk
0:04:42.2]} 8... O-O {[%clk 0:04:51]} 9. Nb5 {[%clk 0:04:35.9]} 9... Qd7 {[%clk
0:04:46.7]} 10. a4 {[%clk 0:04:25.7]} 10... a6 {[%clk 0:04:41.9]} 11. Na3 {[%clk
0:04:24.9]} 11... e5 {[%clk 0:04:30.6]} 12. Nc4 {[%clk 0:04:23.2]} 12... Qc7
{[%clk 0:04:29.9]} 13. a5 {[%clk 0:04:17.8]} 13... Be6 {[%clk 0:04:25.2]} 14.
Nb6 {[%clk 0:04:14.8]} 14... Rad8 {[%clk 0:04:23.6]} 15. Ng5 {[%clk 0:04:13.8]}
15... Nxa5 {[%clk 0:04:10.8]} 16. Nxe6 {[%clk 0:04:09.9]} 16... fxe6 {[%clk
0:04:06.9]} 17. Nc4 {[%clk 0:04:01]} 17... Nc6 {[%clk 0:03:59.9]} 18. Ne3 {[%clk
0:03:51.5]} 18... Nd5 {[%clk 0:03:52.7]} 19. Qa4 {[%clk 0:03:36.1]} 19... Nf4
{[%clk 0:03:47.9]} 20. Bf3 {[%clk 0:03:23.9]} 20... Nxh3+ {[%clk 0:03:40.3]} 21.
gxh3 {[%clk 0:03:17.4]} 21... Rxf3 {[%clk 0:03:38.6]} 22. Kg2 {[%clk 0:03:17.3]}
22... Rdf8 {[%clk 0:03:30.4]} 0-1

[Event "Live Chess"]
[Site "Chess.com"]
[Date "2024.06.02"]
[Round "-"]
[White "MagnersCarlsberg2870"]
[Black "e4evr"]
[Result "1-0"]
[WhiteElo "1788"]
[BlackElo "2242"]
[TimeControl "300"]
[EndTime "18:19:11 PDT"]
[Termination "MagnersCarlsberg2870 won by checkmate"]

1. d4 {[%clk 0:04:57.5]} 1... a5 {[%clk 0:04:59.9]} 2. e4 {[%clk 0:04:55.6]}
2... h5 {[%clk 0:04:59.8]} 3. Bc4 {[%clk 0:04:54.2]} 3... e6 {[%clk 0:04:58.7]}
4. f4 {[%clk 0:04:52.2]} 4... d6 {[%clk 0:04:58.1]} 5. Nf3 {[%clk 0:04:49.4]}
5... c6 {[%clk 0:04:57.6]} 6. Nc3 {[%clk 0:04:46.3]} 6... b5 {[%clk 0:04:57.1]}
7. Bd3 {[%clk 0:04:42.6]} 7... b4 {[%clk 0:04:56.4]} 8. Ne2 {[%clk 0:04:40.4]}
8... f6 {[%clk 0:04:55.7]} 9. e5 {[%clk 0:04:38.9]} 9... f5 {[%clk 0:04:54.9]}
10. exd6 {[%clk 0:04:35.2]} 10... Bxd6 {[%clk 0:04:54]} 11. Ne5 {[%clk
0:04:34.3]} 11... Bxe5 {[%clk 0:04:52.9]} 12. fxe5 {[%clk 0:04:32.3]} 12... a4
{[%clk 0:04:45.5]} 13. Nf4 {[%clk 0:04:28.4]} 13... g5 {[%clk 0:04:43.5]} 14.
Nh3 {[%clk 0:04:22.5]} 14... g4 {[%clk 0:04:40.3]} 15. Ng5 {[%clk 0:04:21.2]}
15... Qxd4 {[%clk 0:04:34.8]} 16. Qe2 {[%clk 0:04:07.3]} 16... Ba6 {[%clk
0:04:29.7]} 17. Be3 {[%clk 0:04:05.3]} 17... Qxe5 {[%clk 0:04:27.8]} 18. Bxa6
{[%clk 0:03:49.9]} 18... Nxa6 {[%clk 0:04:25.9]} 19. O-O {[%clk 0:03:36.8]}
19... Nf6 {[%clk 0:04:23.6]} 20. Qf2 {[%clk 0:03:24.4]} 20... c5 {[%clk
0:04:16.5]} 21. Rae1 {[%clk 0:03:19.2]} 21... O-O {[%clk 0:04:13.2]} 22. Bf4
{[%clk 0:03:15.7]} 22... Qd4 {[%clk 0:04:08.4]} 23. Be3 {[%clk 0:03:08.3]} 23...
Qxb2 {[%clk 0:04:06.1]} 24. Nxe6 {[%clk 0:03:06.5]} 24... Ne4 {[%clk 0:04:04.6]}
25. Qf4 {[%clk 0:02:58.5]} 25... Rf6 {[%clk 0:03:59.3]} 26. Bc1 {[%clk
0:02:40.5]} 26... Qxa2 {[%clk 0:03:51.4]} 27. Rxe4 {[%clk 0:02:38.2]} 27... Rxe6
{[%clk 0:03:44.5]} 28. Qg5+ {[%clk 0:02:31.2]} 28... Kh7 {[%clk 0:03:28.6]} 29.
Qxh5+ {[%clk 0:02:28.2]} 29... Rh6 {[%clk 0:03:23.1]} 30. Re7+ {[%clk 0:02:23]}
30... Kg8 {[%clk 0:03:19.9]} 31. Qxh6 {[%clk 0:02:17.8]} 31... Qf7 {[%clk
0:03:16.9]} 32. Rxf7 {[%clk 0:02:15.9]} 32... Kxf7 {[%clk 0:03:16]} 33. Rxf5+
{[%clk 0:02:14.9]} 33... Ke7 {[%clk 0:03:14.9]} 34. Qf6+ {[%clk 0:02:12.1]}
34... Kd7 {[%clk 0:03:14.1]} 35. Qf7+ {[%clk 0:02:07.7]} 35... Kc6 {[%clk
0:03:12.1]} 36. Qd5+ {[%clk 0:02:01.5]} 36... Kb5 {[%clk 0:03:10.6]} 37. Qxa8
{[%clk 0:02:00.2]} 37... a3 {[%clk 0:03:09.6]} 38. Qb7+ {[%clk 0:01:54.8]} 38...
Ka5 {[%clk 0:03:08.6]} 39. Rf6 {[%clk 0:01:49.5]} 39... b3 {[%clk 0:02:58.6]}
40. Qxa6+ {[%clk 0:01:47.2]} 40... Kb4 {[%clk 0:02:57.7]} 41. Bd2# {[%clk
0:01:43.7]} 1-0